{"text_format":"3","workbook":"xlsx","n_sheets":1,"sheets":["Budget familial mensuel"],"read":"whole","date_system":"1900"}

{"sheet":"Budget familial mensuel","index":0,"n_rows":67,"n_cols":10,"rows_kept":67}
[null,"Budget familial mensuel"]
[null,"Table de synthèse","Total\nCoût prévu","Total\nCoût réel","Total\nDifférence",null,"Source de revenu mensuel prévu","Montant"]
[null,null,{"$f":"Logement[[#Totals],[Coût\nPrévu]]+Transport[[#Totals],[Coût\nPrévu]]+Assurance[[#Totals],[Coût\nPrévu]]+Alimentation[[#Totals],[Coût\nPrévu]]+Enfants[[#Totals],[Coût\nPrévu]]+Juridique[[#Totals],[Coût\nPrévu]]+Épargne[[#Totals],[Coût\nPrévu]]+Emprunts[[#Totals],[Coût\nPrévu]]+Loisirs[[#Totals],[Coût\nPrévu]]+Impôts[[#Totals],[Coût\nPrévu]]+SoinsPersonnels[[#Totals],[Coût\nPrévu]]+Animaux[[#Totals],[Coût\nPrévu]]+Cadeaux[[#Totals],[Coût\nPrévu]]","v":{"v":1203,"d":"1,203 $"}},{"$f":"Logement[[#Totals],[Coût\nRéel]]+Transport[[#Totals],[Coût\nRéel]]+Assurance[[#Totals],[Coût\nRéel]]+Alimentation[[#Totals],[Coût\nRéel]]+Enfants[[#Totals],[Coût\nRéel]]+Juridique[[#Totals],[Coût\nRéel]]+Épargne[[#Totals],[Coût\nRéel]]+Emprunts[[#Totals],[Coût\nRéel]]+Loisirs[[#Totals],[Coût\nRéel]]+Impôts[[#Totals],[Coût\nRéel]]+SoinsPersonnels[[#Totals],[Coût\nRéel]]+Animaux[[#Totals],[Coût\nRéel]]+Cadeaux[[#Totals],[Coût\nRéel]]","v":{"v":1317,"d":"1,317 $"}},{"$f":"Logement[[#Totals],[Différence]]+Transport[[#Totals],[Différence]]+Assurance[[#Totals],[Différence]]+Alimentation[[#Totals],[Différence]]+Enfants[[#Totals],[Différence]]+Juridique[[#Totals],[Différence]]+Épargne[[#Totals],[Différence]]+Emprunts[[#Totals],[Différence]]+Loisirs[[#Totals],[Différence]]+Impôts[[#Totals],[Différence]]+SoinsPersonnels[[#Totals],[Différence]]+Animaux[[#Totals],[Différence]]+Cadeaux[[#Totals],[Différence]]","v":{"v":-114,"d":"-114 $ "}},null,"Revenu 1",{"v":4000,"d":"4,000 $"}]
[{"$nulls":6},"Revenu 2",{"v":1200,"d":"1,200 $"}]
[null,"Logement","Coût\nPrévu","Coût\nRéel","Différence",null,"Revenu supplémentaire",{"v":300,"d":"300 $"}]
[null,"Emprunt ou loyer",{"v":1000,"d":"1,000 $"},{"v":1000,"d":"1,000 $"},{"$f":"Logement[Coût\nPrévu]-Logement[Coût\nRéel]","v":{"v":0,"d":"0 $"}},null,"Revenu mensuel total",{"$f":"SUM(H3:H5)","v":{"v":5500,"d":"5,500 $"}}]
[null,"Second emprunt ou loyer",{"v":0,"d":"0 $"},{"v":0,"d":"0 $"},{"$f":"Logement[Coût\nPrévu]-Logement[Coût\nRéel]","v":{"v":0,"d":"0 $"}}]
[null,"Téléphone",{"v":62,"d":"62 $"},{"v":100,"d":"100 $"},{"$f":"Logement[Coût\nPrévu]-Logement[Coût\nRéel]","v":{"v":-38,"d":"-38 $ "}},null,"Source de revenu mensuel réel","Montant"]
[null,"Électricité",{"v":44,"d":"44 $"},{"v":125,"d":"125 $"},{"$f":"Logement[Coût\nPrévu]-Logement[Coût\nRéel]","v":{"v":-81,"d":"-81 $ "}},null,"Revenu 1",{"v":4000,"d":"4,000 $"}]
[null,"Gaz",{"v":22,"d":"22 $"},{"v":35,"d":"35 $"},{"$f":"Logement[Coût\nPrévu]-Logement[Coût\nRéel]","v":{"v":-13,"d":"-13 $ "}},null,"Revenu 2",{"v":1200,"d":"1,200 $"}]
[null,"Eau",{"v":8,"d":"8 $"},{"v":8,"d":"8 $"},{"$f":"Logement[Coût\nPrévu]-Logement[Coût\nRéel]","v":{"v":0,"d":"0 $"}},null,"Revenu supplémentaire",{"v":300,"d":"300 $"}]
[null,"Abonnement câble",{"v":34,"d":"34 $"},{"v":39,"d":"39 $"},{"$f":"Logement[Coût\nPrévu]-Logement[Coût\nRéel]","v":{"v":-5,"d":"-5 $ "}},null,"Revenu mensuel total",{"$f":"SUM(H9:H11)","v":{"v":5500,"d":"5,500 $"}}]
[null,"Enlèvement des ordures ménagères",{"v":10,"d":"10 $"},{"v":10,"d":"10 $"},{"$f":"Logement[Coût\nPrévu]-Logement[Coût\nRéel]","v":{"v":0,"d":"0 $"}}]
[null,"Entretien ou réparations",{"v":23,"d":"23 $"},{"v":0,"d":"0 $"},{"$f":"Logement[Coût\nPrévu]-Logement[Coût\nRéel]","v":{"v":23,"d":"23 $"}},null,"Solde","Montant"]
[null,"Fournitures",{"v":0,"d":"0 $"},{"v":0,"d":"0 $"},{"$f":"Logement[Coût\nPrévu]-Logement[Coût\nRéel]","v":{"v":0,"d":"0 $"}},null,"Solde prévu",{"$f":"SUM(H6-'Budget familial mensuel'!$C$3:$C$3)","v":{"v":4297,"d":"4,297 $"}}]
[null,"Autre",{"v":0,"d":"0 $"},{"v":0,"d":"0 $"},{"$f":"Logement[Coût\nPrévu]-Logement[Coût\nRéel]","v":{"v":0,"d":"0 $"}},null,"Solde réel",{"$f":"SUM(H12-D3)","v":{"v":4183,"d":"4,183 $"}}]
[null,"Total",{"$f":"SUBTOTAL(109,Logement[Coût\nPrévu])","v":{"v":1203,"d":"1,203 $"}},{"$f":"SUBTOTAL(109,Logement[Coût\nRéel])","v":{"v":1317,"d":"1,317 $"}},{"$f":"SUBTOTAL(109,Logement[Différence])","v":{"v":-114,"d":"-114 $ "}},null,"Différence",{"$f":"SUM(H16-H15)","v":{"v":-114,"d":"-114 $ "}}]
[]
[null,"Transport","Coût\nPrévu","Coût\nRéel","Différence",null,"Emprunts","Coût\nPrévu","Coût\nRéel","Différence"]
[null,"Paiement véhicule 1",null,null,{"$f":"Transport[Coût\nPrévu]-Transport[Coût\nRéel]","v":{"v":0,"d":"0 $"}},null,"Personnel",null,null,{"$f":"Emprunts[Coût\nPrévu]-Emprunts[Coût\nRéel]","v":{"v":0,"d":"0 $"}}]
[null,"Paiement véhicule 2",null,null,{"$f":"Transport[Coût\nPrévu]-Transport[Coût\nRéel]","v":{"v":0,"d":"0 $"}},null,"Étudiant",null,null,{"$f":"Emprunts[Coût\nPrévu]-Emprunts[Coût\nRéel]","v":{"v":0,"d":"0 $"}}]
[null,"Bus/taxi",null,null,{"$f":"Transport[Coût\nPrévu]-Transport[Coût\nRéel]","v":{"v":0,"d":"0 $"}},null,"Carte de crédit",null,null,{"$f":"Emprunts[Coût\nPrévu]-Emprunts[Coût\nRéel]","v":{"v":0,"d":"0 $"}}]
[null,"Assurance",null,null,{"$f":"Transport[Coût\nPrévu]-Transport[Coût\nRéel]","v":{"v":0,"d":"0 $"}},null,"Carte de crédit",null,null,{"$f":"Emprunts[Coût\nPrévu]-Emprunts[Coût\nRéel]","v":{"v":0,"d":"0 $"}}]
[null,"Autorisation",null,null,{"$f":"Transport[Coût\nPrévu]-Transport[Coût\nRéel]","v":{"v":0,"d":"0 $"}},null,"Carte de crédit",null,null,{"$f":"Emprunts[Coût\nPrévu]-Emprunts[Coût\nRéel]","v":{"v":0,"d":"0 $"}}]
[null,"Carburant",null,null,{"$f":"Transport[Coût\nPrévu]-Transport[Coût\nRéel]","v":{"v":0,"d":"0 $"}},null,"Autre",null,null,{"$f":"Emprunts[Coût\nPrévu]-Emprunts[Coût\nRéel]","v":{"v":0,"d":"0 $"}}]
[null,"Entretien",null,null,{"$f":"Transport[Coût\nPrévu]-Transport[Coût\nRéel]","v":{"v":0,"d":"0 $"}},null,"Total",{"$f":"SUBTOTAL(109,Emprunts[Coût\nPrévu])","v":{"v":0,"d":"0 $"}},{"$f":"SUBTOTAL(109,Emprunts[Coût\nRéel])","v":{"v":0,"d":"0 $"}},{"$f":"SUBTOTAL(109,Emprunts[Différence])","v":{"v":0,"d":"0 $"}}]
[null,"Autre",null,null,{"$f":"Transport[Coût\nPrévu]-Transport[Coût\nRéel]","v":{"v":0,"d":"0 $"}}]
[null,"Total",{"$f":"SUBTOTAL(109,Transport[Coût\nPrévu])","v":{"v":0,"d":"0 $"}},{"$f":"SUBTOTAL(109,Transport[Coût\nRéel])","v":{"v":0,"d":"0 $"}},{"$f":"SUBTOTAL(109,Transport[Différence])","v":{"v":0,"d":"0 $"}},null,"Loisirs","Coût\nPrévu","Coût\nRéel","Différence"]
[{"$nulls":6},"Vidéo/DVD",null,null,{"$f":"Loisirs[Coût\nPrévu]-Loisirs[Coût\nRéel]","v":{"v":0,"d":"0 $"}}]
[null,"Assurance","Coût\nPrévu","Coût\nRéel","Différence",null,"CD",null,null,{"$f":"Loisirs[Coût\nPrévu]-Loisirs[Coût\nRéel]","v":{"v":0,"d":"0 $"}}]
[null,"Maison",null,null,{"$f":"Assurance[Coût\nPrévu]-Assurance[Coût\nRéel]","v":{"v":0,"d":"0 $"}},null,"Cinéma",null,null,{"$f":"Loisirs[Coût\nPrévu]-Loisirs[Coût\nRéel]","v":{"v":0,"d":"0 $"}}]
[null,"Santé",null,null,{"$f":"Assurance[Coût\nPrévu]-Assurance[Coût\nRéel]","v":{"v":0,"d":"0 $"}},null,"Concerts",null,null,{"$f":"Loisirs[Coût\nPrévu]-Loisirs[Coût\nRéel]","v":{"v":0,"d":"0 $"}}]
[null,"Vie",null,null,{"$f":"Assurance[Coût\nPrévu]-Assurance[Coût\nRéel]","v":{"v":0,"d":"0 $"}},null,"Événements sportifs",null,null,{"$f":"Loisirs[Coût\nPrévu]-Loisirs[Coût\nRéel]","v":{"v":0,"d":"0 $"}}]
[null,"Autre",null,null,{"$f":"Assurance[Coût\nPrévu]-Assurance[Coût\nRéel]","v":{"v":0,"d":"0 $"}},null,"Théâtre",null,null,{"$f":"Loisirs[Coût\nPrévu]-Loisirs[Coût\nRéel]","v":{"v":0,"d":"0 $"}}]
[null,"Total",{"$f":"SUBTOTAL(109,Assurance[Coût\nPrévu])","v":{"v":0,"d":"0 $"}},{"$f":"SUBTOTAL(109,Assurance[Coût\nRéel])","v":{"v":0,"d":"0 $"}},{"$f":"SUBTOTAL(109,Assurance[Différence])","v":{"v":0,"d":"0 $"}},null,"Autre",null,null,{"$f":"Loisirs[Coût\nPrévu]-Loisirs[Coût\nRéel]","v":{"v":0,"d":"0 $"}}]
[{"$nulls":6},"Total",{"$f":"SUBTOTAL(109,Loisirs[Coût\nPrévu])","v":{"v":0,"d":"0 $"}},{"$f":"SUBTOTAL(109,Loisirs[Coût\nRéel])","v":{"v":0,"d":"0 $"}},{"$f":"SUBTOTAL(109,Loisirs[Différence])","v":{"v":0,"d":"0 $"}}]
[null,"Alimentation","Coût\nPrévu","Coût\nRéel","Différence"]
[null,"Courses",null,null,{"$f":"Alimentation[Coût\nPrévu]-Alimentation[Coût\nRéel]","v":{"v":0,"d":"0 $"}},null,"Impôts","Coût\nPrévu","Coût\nRéel","Différence"]
[null,"Restaurant",null,null,{"$f":"Alimentation[Coût\nPrévu]-Alimentation[Coût\nRéel]","v":{"v":0,"d":"0 $"}},null,"Fonciers",null,null,{"$f":"Impôts[Coût\nPrévu]-Impôts[Coût\nRéel]","v":{"v":0,"d":"0 $"}}]
[null,"Autre",null,null,{"$f":"Alimentation[Coût\nPrévu]-Alimentation[Coût\nRéel]","v":{"v":0,"d":"0 $"}},null,"Régionales",null,null,{"$f":"Impôts[Coût\nPrévu]-Impôts[Coût\nRéel]","v":{"v":0,"d":"0 $"}}]
[null,"Total",{"$f":"SUBTOTAL(109,Alimentation[Coût\nPrévu])","v":{"v":0,"d":"0 $"}},{"$f":"SUBTOTAL(109,Alimentation[Coût\nRéel])","v":{"v":0,"d":"0 $"}},{"$f":"SUBTOTAL(109,Alimentation[Différence])","v":{"v":0,"d":"0 $"}},null,"Locales",null,null,{"$f":"Impôts[Coût\nPrévu]-Impôts[Coût\nRéel]","v":{"v":0,"d":"0 $"}}]
[{"$nulls":6},"Autre",null,null,{"$f":"Impôts[Coût\nPrévu]-Impôts[Coût\nRéel]","v":{"v":0,"d":"0 $"}}]
[null,"Enfants","Coût\nPrévu","Coût\nRéel","Différence",null,"Total",{"$f":"SUBTOTAL(109,Impôts[Coût\nPrévu])","v":{"v":0,"d":"0 $"}},{"$f":"SUBTOTAL(109,Impôts[Coût\nRéel])","v":{"v":0,"d":"0 $"}},{"$f":"SUBTOTAL(109,Impôts[Différence])","v":{"v":0,"d":"0 $"}}]
[null,"Soins médicaux",null,null,{"$f":"Enfants[Coût\nPrévu]-Enfants[Coût\nRéel]","v":{"v":0,"d":"0 $"}}]
[null,"Habillement",null,null,{"$f":"Enfants[Coût\nPrévu]-Enfants[Coût\nRéel]","v":{"v":0,"d":"0 $"}},null,"Soins personnels","Coût\nPrévu","Coût\nRéel","Différence"]
[null,"Frais de scolarité",null,null,{"$f":"Enfants[Coût\nPrévu]-Enfants[Coût\nRéel]","v":{"v":0,"d":"0 $"}},null,"Soins médicaux",null,null,{"$f":"SoinsPersonnels[Coût\nPrévu]-SoinsPersonnels[Coût\nRéel]","v":{"v":0,"d":"0 $"}}]
[null,"Fournitures scolaires",null,null,{"$f":"Enfants[Coût\nPrévu]-Enfants[Coût\nRéel]","v":{"v":0,"d":"0 $"}},null,"Coiffeur/manucure",null,null,{"$f":"SoinsPersonnels[Coût\nPrévu]-SoinsPersonnels[Coût\nRéel]","v":{"v":0,"d":"0 $"}}]
[null,"Cotisations ou frais d’inscription",null,null,{"$f":"Enfants[Coût\nPrévu]-Enfants[Coût\nRéel]","v":{"v":0,"d":"0 $"}},null,"Habillement",null,null,{"$f":"SoinsPersonnels[Coût\nPrévu]-SoinsPersonnels[Coût\nRéel]","v":{"v":0,"d":"0 $"}}]
[null,"Cantine",null,null,{"$f":"Enfants[Coût\nPrévu]-Enfants[Coût\nRéel]","v":{"v":0,"d":"0 $"}},null,"Nettoyage à sec",null,null,{"$f":"SoinsPersonnels[Coût\nPrévu]-SoinsPersonnels[Coût\nRéel]","v":{"v":0,"d":"0 $"}}]
[null,"Garderie",null,null,{"$f":"Enfants[Coût\nPrévu]-Enfants[Coût\nRéel]","v":{"v":0,"d":"0 $"}},null,"Club de sport",null,null,{"$f":"SoinsPersonnels[Coût\nPrévu]-SoinsPersonnels[Coût\nRéel]","v":{"v":0,"d":"0 $"}}]
[null,"Jouets/jeux",null,null,{"$f":"Enfants[Coût\nPrévu]-Enfants[Coût\nRéel]","v":{"v":0,"d":"0 $"}},null,"Cotisations/frais d’inscription",null,null,{"$f":"SoinsPersonnels[Coût\nPrévu]-SoinsPersonnels[Coût\nRéel]","v":{"v":0,"d":"0 $"}}]
[null,"Autre",null,null,{"$f":"Enfants[Coût\nPrévu]-Enfants[Coût\nRéel]","v":{"v":0,"d":"0 $"}},null,"Autre",null,null,{"$f":"SoinsPersonnels[Coût\nPrévu]-SoinsPersonnels[Coût\nRéel]","v":{"v":0,"d":"0 $"}}]
[null,"Total",{"$f":"SUBTOTAL(109,Enfants[Coût\nPrévu])","v":{"v":0,"d":"0 $"}},{"$f":"SUBTOTAL(109,Enfants[Coût\nRéel])","v":{"v":0,"d":"0 $"}},{"$f":"SUBTOTAL(109,Enfants[Différence])","v":{"v":0,"d":"0 $"}},null,"Total",{"$f":"SUBTOTAL(109,SoinsPersonnels[Coût\nPrévu])","v":{"v":0,"d":"0 $"}},{"$f":"SUBTOTAL(109,SoinsPersonnels[Coût\nRéel])","v":{"v":0,"d":"0 $"}},{"$f":"SUBTOTAL(109,SoinsPersonnels[Différence])","v":{"v":0,"d":"0 $"}}]
[]
[null,"Juridique","Coût\nPrévu","Coût\nRéel","Différence",null,"Animaux","Coût\nPrévu","Coût\nRéel","Différence"]
[null,"Avocat",null,null,{"$f":"Juridique[Coût\nPrévu]-Juridique[Coût\nRéel]","v":{"v":0,"d":"0 $"}},null,"Alimentation",null,null,{"$f":"Animaux[Coût\nPrévu]-Animaux[Coût\nRéel]","v":{"v":0,"d":"0 $"}}]
[null,"Pension alimentaire",null,null,{"$f":"Juridique[Coût\nPrévu]-Juridique[Coût\nRéel]","v":{"v":0,"d":"0 $"}},null,"Frais médicaux",null,null,{"$f":"Animaux[Coût\nPrévu]-Animaux[Coût\nRéel]","v":{"v":0,"d":"0 $"}}]
[null,"Paiements",null,null,{"$f":"Juridique[Coût\nPrévu]-Juridique[Coût\nRéel]","v":{"v":0,"d":"0 $"}},null,"Toilettage",null,null,{"$f":"Animaux[Coût\nPrévu]-Animaux[Coût\nRéel]","v":{"v":0,"d":"0 $"}}]
[null,"Autre",null,null,{"$f":"Juridique[Coût\nPrévu]-Juridique[Coût\nRéel]","v":{"v":0,"d":"0 $"}},null,"Jouets",null,null,{"$f":"Animaux[Coût\nPrévu]-Animaux[Coût\nRéel]","v":{"v":0,"d":"0 $"}}]
[null,"Total",{"$f":"SUBTOTAL(109,Juridique[Coût\nPrévu])","v":{"v":0,"d":"0 $"}},{"$f":"SUBTOTAL(109,Juridique[Coût\nRéel])","v":{"v":0,"d":"0 $"}},{"$f":"SUBTOTAL(109,Juridique[Différence])","v":{"v":0,"d":"0 $"}},null,"Autre",null,null,{"$f":"Animaux[Coût\nPrévu]-Animaux[Coût\nRéel]","v":{"v":0,"d":"0 $"}}]
[{"$nulls":6},"Total",{"$f":"SUBTOTAL(109,Animaux[Coût\nPrévu])","v":{"v":0,"d":"0 $"}},{"$f":"SUBTOTAL(109,Animaux[Coût\nRéel])","v":{"v":0,"d":"0 $"}},{"$f":"SUBTOTAL(109,Animaux[Différence])","v":{"v":0,"d":"0 $"}}]
[null,"Épargne/investissements","Coût\nPrévu","Coût\nRéel","Différence"]
[null,"Compte d’épargne retraite",null,null,{"$f":"Épargne[Coût\nPrévu]-Épargne[Coût\nRéel]","v":{"v":0,"d":"0 $"}},null,"Dons","Coût\nPrévu","Coût\nRéel","Différence"]
[null,"Compte d’investissement",null,null,{"$f":"Épargne[Coût\nPrévu]-Épargne[Coût\nRéel]","v":{"v":0,"d":"0 $"}},null,"Association caritative 1",null,null,{"$f":"Cadeaux[Coût\nPrévu]-Cadeaux[Coût\nRéel]","v":{"v":0,"d":"0 $"}}]
[null,"Université",null,null,{"$f":"Épargne[Coût\nPrévu]-Épargne[Coût\nRéel]","v":{"v":0,"d":"0 $"}},null,"Association caritative 2",null,null,{"$f":"Cadeaux[Coût\nPrévu]-Cadeaux[Coût\nRéel]","v":{"v":0,"d":"0 $"}}]
[null,"Autre",null,null,{"$f":"Épargne[Coût\nPrévu]-Épargne[Coût\nRéel]","v":{"v":0,"d":"0 $"}},null,"Association caritative 3",null,null,{"$f":"Cadeaux[Coût\nPrévu]-Cadeaux[Coût\nRéel]","v":{"v":0,"d":"0 $"}}]
[null,"Total",{"$f":"SUBTOTAL(109,Épargne[Coût\nPrévu])","v":{"v":0,"d":"0 $"}},{"$f":"SUBTOTAL(109,Épargne[Coût\nRéel])","v":{"v":0,"d":"0 $"}},{"$f":"SUBTOTAL(109,Épargne[Différence])","v":{"v":0,"d":"0 $"}},null,"Total",{"$f":"SUBTOTAL(109,Cadeaux[Coût\nPrévu])","v":{"v":0,"d":"0 $"}},{"$f":"SUBTOTAL(109,Cadeaux[Coût\nRéel])","v":{"v":0,"d":"0 $"}},{"$f":"SUBTOTAL(109,Cadeaux[Différence])","v":{"v":0,"d":"0 $"}}]